bitfinex/quotes_BTCUSD_20240623
["timestamp","ask_amount","ask_price","bid_price","bid_amount"]
[1719147148426,1.27319497,64453.0,64452.0,0.27981785]
[1719147148675,1.41292872,64453.0,64452.0,0.27981785]
[1719147149072,1.41292872,64453.0,64452.0,0.34571785]
[1719147149267,1.41292872,64453.0,64452.0,0.36520596]
[1719147149895,1.41292872,64453.0,64452.0,0.34571785]
[1719147150096,1.21521515,64453.0,64452.0,0.34571785]
[1719147150898,1.21521515,64453.0,64452.0,0.36520596]
[1719147151311,1.41417796,64453.0,64452.0,0.34571785]
[1719147152282,1.41519648,64453.0,64452.0,0.34571785]
[1719147152593,1.27545404,64453.0,64452.0,0.34571785]
[1719147159864,1.27496387,64453.0,64452.0,0.34571785]
[1719147161302,1.27496387,64453.0,64452.0,0.34665285]
[1719147162987,1.21521515,64453.0,64452.0,0.34665285]
[1719147163146,1.27494082,64453.0,64452.0,0.34665285]
[1719147164263,1.27494082,64453.0,64452.0,0.36614096]
[1719147165408,1.27494082,64453.0,64452.0,0.34665285]
[1719147165627,1.27494082,64453.0,64452.0,0.36614096]
[1719147166783,1.22693522,64453.0,64452.0,0.34665285]
[1719147166984,1.27481132,64453.0,64452.0,0.34665285]
[1719147169457,1.27480542,64453.0,64452.0,0.34665285]
[1719147169829,1.27480542,64453.0,64452.0,0.36614096]
[1719147171742,1.27480542,64453.0,64452.0,0.34665285]
[1719147171946,1.27480542,64453.0,64452.0,0.36614096]
[1719147172643,1.27427681,64453.0,64452.0,0.36614096]
[1719147173063,0.96397381,64453.0,64452.0,0.36614096]
[1719147173264,1.27427681,64453.0,64452.0,0.36614096]
[1719147174263,1.27427681,64453.0,64452.0,0.34665285]
[1719147178944,1.21521515,64453.0,64452.0,0.34665285]
[1719147179173,1.27427823,64453.0,64452.0,0.34665285]
[1719147179507,1.27427823,64453.0,64452.0,0.30617958]
[1719147181360,1.27388505,64453.0,64452.0,0.30617958]
[1719147183323,1.14488505,64453.0,64452.0,0.30617958]
[1719147184501,1.08621515,64453.0,64452.0,0.30617958]
[1719147184641,1.14425095,64453.0,64452.0,0.30617958]
[1719147184843,1.08621515,64453.0,64452.0,0.30617958]
[1719147185049,1.14425122,64453.0,64452.0,0.34402634]
[1719147185637,1.24425122,64453.0,64452.0,0.34402634]
[1719147187643,1.24419277,64453.0,64452.0,0.34402634]
[1719147190805,1.24424257,64453.0,64452.0,0.34402634]
[1719147191026,1.30214385,64453.0,64452.0,0.34402634]
[1719147194028,1.30011661,64453.0,64452.0,0.34402634]
[1719147194499,1.24218376,64453.0,64452.0,0.34402634]
[1719147194740,1.30011662,64453.0,64452.0,0.34402634]
[1719147195560,1.24218376,64453.0,64452.0,0.34402634]
[1719147195761,1.30096623,64453.0,64452.0,0.34402634]
[1719147196216,1.30096623,64453.0,64452.0,0.36351445]
[1719147197452,1.30231837,64453.0,64452.0,0.36351445]
[1719147198331,1.30231837,64453.0,64452.0,0.34402634]
[1719147200328,1.29088976,64453.0,64452.0,0.34402634]
[1719147200564,1.30245321,64453.0,64452.0,0.34402634]
[1719147201382,1.24442579,64453.0,64452.0,0.34402634]
[1719147202583,1.24442579,64453.0,64452.0,0.36351445]
[1719147203566,1.24438504,64453.0,64452.0,0.36351445]
[1719147205209,1.24463606,64453.0,64452.0,0.36351445]
[1719147206756,1.24462542,64453.0,64452.0,0.36351445]
[1719147207602,1.24462542,64453.0,64452.0,0.34402634]
[1719147208789,1.24462542,64453.0,64452.0,0.36351445]
[1719147209550,1.24462542,64453.0,64452.0,0.34402634]
[1719147209754,1.24462542,64453.0,64452.0,0.36351445]
[1719147209958,1.2446267,64453.0,64452.0,0.36351445]
[1719147211110,1.2446267,64453.0,64452.0,0.34402634]
[1719147212370,1.18500634,64453.0,64452.0,0.34402634]
[1719147212573,1.24442779,64453.0,64452.0,0.34402634]
[1719147213191,1.18500634,64453.0,64452.0,0.34402634]
[1719147213393,1.24446397,64453.0,64452.0,0.34402634]
[1719147213799,1.19658934,64453.0,64452.0,0.34402634]
[1719147214135,1.24446396,64453.0,64452.0,0.34402634]
[1719147214342,1.24446396,64453.0,64452.0,0.18948176]
[1719147214559,1.24446396,64453.0,64452.0,0.34402634]
[1719147216433,1.24318075,64453.0,64452.0,0.34402634]
[1719147219474,1.19569859,64453.0,64452.0,0.34402634]
[1719147219682,1.24272489,64453.0,64452.0,0.34402634]
[1719147222243,1.04272489,64453.0,64452.0,0.34402634]
[1719147222424,1.19787589,64453.0,64452.0,0.34402634]
[1719147222628,1.19787483,64453.0,64452.0,0.36351445]
[1719147223089,1.18718312,64453.0,64452.0,0.36351445]
[1719147223289,1.19787483,64453.0,64452.0,0.36351445]
[1719147224569,1.24478264,64453.0,64452.0,0.36351445]
[1719147225365,1.24478264,64453.0,64452.0,0.34402634]
[1719147225770,1.18706515,64453.0,64452.0,0.34402634]
[1719147225972,1.2449124,64453.0,64452.0,0.34402634]
[1719147229961,1.2449124,64453.0,64452.0,0.36351445]
[1719147232184,1.24531735,64453.0,64452.0,0.36351445]
[1719147232647,1.18706515,64453.0,64452.0,0.36351445]
[1719147232803,1.2452408,64453.0,64452.0,0.36351445]
[1719147234175,1.24535286,64453.0,64452.0,0.36351445]
[1719147235594,1.24525862,64453.0,64452.0,0.36351445]
[1719147237774,1.24525862,64453.0,64452.0,0.18948176]
[1719147238199,1.24525862,64453.0,64452.0,0.36351445]
[1719147238622,1.18706515,64453.0,64452.0,0.36351445]
[1719147238818,1.24531757,64453.0,64452.0,0.36351445]
[1719147241193,1.18706515,64453.0,64452.0,0.18948176]
[1719147241399,1.24538228,64453.0,64452.0,0.18948176]
[1719147241569,1.24538228,64453.0,64452.0,0.34402634]
[1719147241771,1.24545925,64453.0,64452.0,0.34402634]
[1719147243108,1.24545286,64453.0,64452.0,0.34402634]
[1719147246332,0.93514986,64453.0,64452.0,0.34402634]
[1719147246745,0.93514986,64453.0,64452.0,0.36351445]
[1719147247166,0.93514986,64453.0,64452.0,0.18948176]
[1719147247413,0.93542852,64453.0,64452.0,0.18948176]
[1719147247792,0.93542852,64453.0,64452.0,0.34402634]
[1719147248583,0.93542852,64453.0,64452.0,0.18948176]
[1719147250493,0.87676215,64453.0,64452.0,0.18948176]
[1719147250700,0.93607843,64453.0,64452.0,0.18948176]
[1719147250898,0.93607843,64453.0,64452.0,0.36351445]
[1719147250899,0.87676215,64453.0,64452.0,0.36351445]
[1719147251107,0.92456783,64453.0,64452.0,0.38010656]
[1719147251505,0.93607843,64453.0,64452.0,0.36351445]
[1719147252254,0.93629066,64453.0,64452.0,0.36351445]
[1719147253598,0.93626624,64453.0,64452.0,0.36351445]
[1719147256554,0.93626624,64453.0,64452.0,0.34402634]
[1719147256760,0.93580378,64453.0,64452.0,0.34402634]
[1719147257155,0.93580378,64453.0,64452.0,0.18948176]
[1719147257355,0.93580378,64453.0,64452.0,0.34402634]
[1719147257657,0.93580378,64453.0,64452.0,0.18948176]
[1719147257857,0.93580378,64453.0,64452.0,0.34402634]
[1719147258295,0.93580378,64453.0,64452.0,0.18948176]
[1719147258496,0.93580378,64453.0,64452.0,0.34402634]
[1719147258862,0.93580378,64453.0,64452.0,0.18948176]
[1719147259797,0.87676215,64453.0,64452.0,0.18948176]
[1719147260135,0.93578993,64453.0,64452.0,0.18948176]
[1719147260290,0.92442628,64453.0,64452.0,0.18948176]
[1719147260492,1.07565755,64453.0,64452.0,0.18948176]
[1719147261830,1.07565755,64453.0,64452.0,0.34402634]
[1719147262386,1.07565755,64453.0,64452.0,0.18948176]
[1719147262596,1.07565755,64453.0,64452.0,0.36351445]
[1719147263003,1.07565755,64453.0,64452.0,0.34402634]
[1719147263200,1.07564018,64453.0,64452.0,0.18948176]
[1719147263468,1.07564018,64453.0,64452.0,0.36351445]
[1719147266346,1.07567418,64453.0,64452.0,0.36351445]
[1719147269392,1.01661914,64453.0,64452.0,0.36351445]
[1719147269689,1.07593007,64453.0,64452.0,0.36351445]
[1719147269850,1.07593007,64453.0,64452.0,0.34402634]
[1719147270070,1.0759301,64453.0,64452.0,0.36351445]
[1719147271094,1.0759301,64453.0,64452.0,0.34402634]
[1719147271304,1.07593102,64453.0,64452.0,0.34402634]
[1719147272039,1.07593102,64453.0,64452.0,0.18948176]
[1719147272373,1.07593102,64453.0,64452.0,0.34402634]
[1719147272652,1.06508173,64453.0,64452.0,0.34402634]
[1719147272853,0.9374382,64453.0,64452.0,0.34402634]
[1719147273024,1.07728937,64453.0,64452.0,0.34402634]
[1719147273272,1.07728937,64453.0,64452.0,0.36059729]
[1719147273504,1.07728937,64453.0,64452.0,0.34402634]
[1719147273738,1.07728937,64453.0,64452.0,0.30345957]
[1719147274713,1.07728937,64453.0,64452.0,0.14891499]
[1719147275054,1.07728937,64453.0,64452.0,0.30345957]
[1719147276071,1.11311502,64453.0,64452.0,0.30345957]
[1719147276240,1.12509515,64453.0,64452.0,0.30345957]
[1719147276720,1.12509515,64453.0,64452.0,0.23755957]
[1719147279056,0.92501342,64453.0,64452.0,0.23755957]
[1719147279256,0.98469226,64453.0,64452.0,0.23755957]
[1719147279635,0.98469379,64453.0,64452.0,0.23755957]
[1719147280889,0.98489627,64453.0,64452.0,0.23755957]
[1719147282517,0.92501342,64453.0,64452.0,0.23755957]
[1719147282722,0.9836975,64453.0,64452.0,0.23755957]
[1719147283940,0.93544623,64453.0,64452.0,0.23755957]
[1719147285511,0.93515661,64453.0,64452.0,0.23755957]
[1719147287715,0.93515661,64453.0,64452.0,0.27901434]
[1719147288673,0.92381677,64453.0,64452.0,0.27901434]
[1719147288881,0.93453987,64453.0,64452.0,0.27901434]
[1719147289051,0.92381677,64453.0,64452.0,0.27901434]
[1719147289254,0.93453987,64453.0,64452.0,0.29558248]
[1719147289491,0.93453987,64453.0,64452.0,0.27901434]
[1719147290469,0.93453986,64453.0,64452.0,0.27901434]
[1719147291147,0.93453986,64453.0,64452.0,0.23755957]
[1719147291888,0.87676215,64453.0,64452.0,0.23755957]
[1719147292097,0.93351645,64453.0,64452.0,0.23755957]
[1719147293695,1.24381945,64453.0,64452.0,0.23755957]
[1719147295007,1.2432229,64453.0,64452.0,0.23755957]
[1719147296689,1.2432229,64453.0,64452.0,0.08301499]
[1719147297246,1.2432229,64453.0,64452.0,0.23755957]
[1719147297449,1.2432229,64453.0,64452.0,0.15747958]
[1719147298186,1.18706515,64453.0,64452.0,0.15747958]
[1719147298393,1.24318234,64453.0,64452.0,0.17404772]
[1719147298575,1.1969382,64453.0,64452.0,0.17404772]
[1719147298795,1.25305583,64453.0,64452.0,0.17404772]
[1719147299113,1.24318278,64453.0,64452.0,0.15747958]
[1719147300735,0.93287978,64453.0,64452.0,0.20058635]
[1719147300978,0.88661385,64453.0,64452.0,0.20058635]
[1719147301189,0.93283878,64453.0,64452.0,0.06260991]
[1719147301393,1.24314178,64453.0,64452.0,0.21715449]
[1719147302109,1.24314178,64453.0,64452.0,0.06260991]
[1719147303651,1.24304059,64453.0,64452.0,0.06260991]
[1719147303842,1.24302973,64453.0,64452.0,0.06260991]
[1719147304041,1.24302973,64453.0,64452.0,0.21715449]
[1719147304243,1.24302973,64453.0,64452.0,0.01950314]
[1719147304601,1.24302973,64453.0,64452.0,0.002935]
[1719147304831,1.24302973,64453.0,64452.0,0.15747958]
[1719147306870,1.18706515,64453.0,64452.0,0.15747958]
[1719147307080,0.15680791,64453.0,64452.0,0.50362881]
[1719147307254,0.15680791,64453.0,64452.0,0.64032435]
[1719147307455,0.14708305,64453.0,64452.0,0.64032435]
[1719147307620,0.1107068,64453.0,64452.0,0.65032435]
[1719147307825,0.1107068,64453.0,64452.0,0.64032435]
[1719147308023,0.1107068,64453.0,64452.0,0.63932435]
[1719147308254,0.22922445,64453.0,64452.0,0.63932435]
[1719147308713,0.22919268,64453.0,64452.0,0.64932435]
[1719147308956,0.22719268,64453.0,64452.0,0.63832435]
[1719147310090,0.22717602,64453.0,64452.0,0.63832435]
[1719147310302,0.11067503,64453.0,64452.0,0.63832435]
[1719147311164,0.00085,64455.0,64453.0,0.15454458]
[1719147311398,0.00085,64455.0,64454.0,0.62879381]
[1719147311624,0.00085,64455.0,64454.0,0.6453606]
[1719147312286,0.00085,64455.0,64454.0,0.6376206]
[1719147314663,0.00085,64455.0,64454.0,0.6516206]
[1719147314813,0.00085,64455.0,64454.0,0.78392392]
[1719147315053,0.47931267,64459.0,64458.0,0.46403269]
[1719147315261,0.47931267,64459.0,64458.0,0.80879381]
[1719147315567,0.47931267,64459.0,64458.0,0.92159465]
[1719147316636,0.47931267,64459.0,64458.0,0.93059465]
[1719147318097,0.47931267,64459.0,64458.0,0.93959465]
[1719147318308,0.17824809,64459.0,64458.0,0.93959465]
[1719147320835,0.17824809,64459.0,64458.0,0.92959465]
[1719147321261,0.18791637,64459.0,64458.0,0.92959465]
[1719147321405,0.18791637,64459.0,64458.0,0.93959465]
[1719147321624,0.18791637,64459.0,64458.0,0.93974971]
[1719147323665,0.18791637,64459.0,64458.0,1.00190671]
[1719147324108,0.18791637,64459.0,64458.0,0.99190671]
[1719147324642,0.18791637,64459.0,64458.0,1.00190671]
[1719147325782,0.17824809,64459.0,64458.0,1.00190671]
[1719147326015,0.18791637,64459.0,64458.0,1.00190671]
[1719147326260,0.17824809,64459.0,64458.0,1.00284171]
[1719147326497,0.18791637,64459.0,64458.0,1.00284171]
[1719147332243,0.18791641,64459.0,64458.0,1.00284171]
[1719147332618,0.17824809,64459.0,64458.0,1.00284171]
[1719147332818,0.18791641,64459.0,64458.0,1.00284171]
[1719147334334,0.18791641,64459.0,64458.0,0.99284171]
[1719147334537,0.34305341,64459.0,64458.0,0.99284171]
[1719147334737,0.34305341,64459.0,64458.0,0.91614171]
[1719147335331,0.33338509,64459.0,64458.0,0.91614171]
[1719147335532,0.34305348,64459.0,64458.0,0.92184171]
[1719147335959,0.34305372,64459.0,64458.0,0.92184171]
[1719147336966,0.34305385,64459.0,64458.0,0.92184171]
[1719147337150,0.65332785,64459.0,64458.0,0.82364171]
[1719147337985,0.65332785,64459.0,64458.0,0.81464171]
[1719147338586,0.65332785,64459.0,64458.0,0.80664171]
[1719147338786,0.65332787,64459.0,64458.0,0.80764171]
[1719147339283,0.65332787,64459.0,64458.0,0.81764171]
[1719147341112,0.65332787,64459.0,64458.0,0.80764171]
[1719147341693,0.65332766,64459.0,64458.0,0.90584171]
[1719147342281,0.65332766,64459.0,64458.0,0.91584171]
[1719147343101,0.65332766,64459.0,64458.0,0.99164171]
[1719147344099,0.65332766,64459.0,64458.0,0.98164171]
[1719147345070,0.65611296,64459.0,64458.0,0.90584171]
[1719147345411,0.64365909,64459.0,64458.0,0.90584171]
[1719147345653,0.65611298,64459.0,64458.0,0.90584171]
[1719147351389,0.65544647,64459.0,64458.0,0.90584171]
[1719147352280,0.70198934,64459.0,64458.0,0.90584171]
[1719147353443,0.65544647,64459.0,64458.0,0.90584171]
[1719147354504,0.64365909,64459.0,64458.0,0.90584171]
[1719147354859,0.65543765,64459.0,64458.0,0.90584171]
[1719147355083,0.65541637,64459.0,64458.0,0.90584171]
[1719147355301,0.72527432,64459.0,64458.0,0.90584171]
[1719147355885,0.71351704,64459.0,64458.0,0.90584171]
[1719147356132,0.72526553,64459.0,64458.0,0.90584171]
[1719147357191,0.65540758,64459.0,64458.0,0.90584171]
[1719147357377,0.74855151,64459.0,64458.0,0.90584171]
[1719147357574,0.64365909,64459.0,64458.0,0.90584171]
[1719147357819,0.65539602,64459.0,64458.0,0.90584171]
[1719147358062,0.74860191,64459.0,64458.0,0.90584171]
[1719147358404,0.65539602,64459.0,64458.0,0.90584171]
[1719147359160,0.74860191,64459.0,64458.0,0.90584171]
[1719147360789,0.74865468,64459.0,64458.0,0.90584171]
[1719147361544,0.74865468,64459.0,64458.0,0.91584171]
[1719147361761,0.43838068,64459.0,64458.0,0.91584171]
[1719147361999,0.34517123,64459.0,64458.0,0.91584171]
[1719147362587,0.34517123,64459.0,64458.0,0.90584171]
[1719147362782,0.34517123,64459.0,64458.0,0.91584171]
[1719147363207,0.33338509,64459.0,64458.0,0.91584171]
[1719147363426,0.34558324,64459.0,64458.0,0.91584171]
[1719147363576,0.33338509,64459.0,64458.0,0.90584171]
[1719147363782,0.34558329,64459.0,64458.0,0.90584171]
[1719147366338,0.33338509,64459.0,64458.0,0.90584171]
[1719147366682,0.34559615,64459.0,64458.0,0.90584171]
[1719147367215,0.43880901,64459.0,64458.0,0.90584171]
[1719147367416,0.34559615,64459.0,64458.0,0.90584171]
[1719147367830,0.43880901,64459.0,64458.0,0.90584171]
[1719147370442,0.43880901,64459.0,64458.0,0.98824171]
[1719147371262,0.34559615,64459.0,64458.0,0.98824171]
[1719147371610,0.43880901,64459.0,64458.0,0.98824171]
[1719147371816,0.43880901,64459.0,64458.0,0.9716776]
[1719147372016,0.43880901,64459.0,64458.0,0.98823978]
[1719147372598,0.33338509,64459.0,64458.0,0.98823978]
[1719147372803,0.43884285,64459.0,64458.0,0.98823978]
[1719147373021,0.345623,64459.0,64458.0,0.98823978]
[1719147373254,0.43887819,64459.0,64458.0,0.98823978]
[1719147373937,0.3456583,64459.0,64458.0,0.98823978]
[1719147375208,0.43887819,64459.0,64458.0,0.98823978]
[1719147375431,0.3456583,64459.0,64458.0,0.98823978]
[1719147375665,0.43887819,64459.0,64458.0,0.98823978]
[1719147375871,0.438883,64459.0,64458.0,0.99823978]
[1719147376854,0.3456583,64459.0,64458.0,0.99823978]
[1719147378349,0.1905213,64459.0,64458.0,0.99823978]
[1719147379008,0.17824809,64459.0,64458.0,0.99823978]
[1719147379254,0.28352285,64459.0,64458.0,0.99823978]
[1719147380032,0.28352285,64459.0,64458.0,0.98823978]
[1719147380485,0.28352285,64459.0,64458.0,0.99823978]
[1719147380602,0.19029416,64459.0,64458.0,0.99823978]
[1719147381362,0.28352285,64459.0,64458.0,0.99823978]
[1719147382111,0.19031821,64459.0,64458.0,0.99823978]
[1719147382438,0.28355454,64459.0,64458.0,0.99823978]
[1719147382627,0.2835545,64459.0,64458.0,0.99823978]
[1719147383775,0.28341686,64459.0,64458.0,0.99823978]
[1719147383981,0.28341686,64459.0,64458.0,0.98823978]
[1719147385533,0.28323243,64459.0,64458.0,0.98823978]
[1719147386233,0.28323243,64459.0,64458.0,0.99823978]
[1719147388454,0.17824809,64459.0,64458.0,0.99823978]
[1719147388669,0.28275502,64459.0,64458.0,0.99823978]
[1719147391558,0.17824809,64459.0,64458.0,0.99823978]
[1719147391770,0.28243167,64459.0,64458.0,0.99823978]
[1719147392140,0.29342656,64459.0,64458.0,0.99823978]
[1719147392460,0.28248312,64459.0,64458.0,0.98823978]
[1719147392867,0.28248314,64459.0,64458.0,0.98823978]
[1719147393008,0.28248314,64459.0,64458.0,0.99823978]
[1719147393454,0.28248345,64459.0,64458.0,0.99823978]
[1719147394141,0.28248345,64459.0,64458.0,0.98823978]
[1719147394753,0.28272133,64459.0,64458.0,0.98823978]
[1719147398167,0.28253967,64459.0,64458.0,0.98823978]
[1719147399371,0.43767667,64459.0,64458.0,0.98823978]
[1719147399582,0.43767667,64459.0,64458.0,0.90583978]
[1719147400573,0.34443515,64459.0,64458.0,0.90583978]
[1719147401287,0.33338509,64459.0,64458.0,0.90583978]
[1719147401498,0.34397305,64459.0,64458.0,0.90583978]
[1719147401907,0.34397304,64459.0,64458.0,0.90583978]
[1719147404503,0.3439936,64459.0,64458.0,0.90583978]
[1719147407621,0.33338509,64459.0,64458.0,0.90583978]
[1719147407821,0.34385665,64459.0,64458.0,0.90583978]
[1719147408353,0.34385665,64459.0,64458.0,0.91583978]
[1719147409166,0.34385665,64459.0,64458.0,0.90583978]
[1719147410705,0.33338509,64459.0,64458.0,0.90583978]
[1719147410923,0.34387912,64459.0,64458.0,0.90583978]
[1719147412518,0.34389814,64459.0,64458.0,0.90583978]
[1719147414000,0.34389809,64459.0,64458.0,0.90583978]
[1719147417155,0.33338509,64459.0,64458.0,0.90583978]
[1719147417323,0.3439809,64459.0,64458.0,0.90583978]
[1719147420403,0.34378979,64459.0,64458.0,0.90583978]
[1719147420855,0.33338509,64459.0,64458.0,0.90583978]
[1719147421144,0.34378979,64459.0,64458.0,0.90583978]
[1719147422917,0.34385875,64459.0,64458.0,0.90583978]
[1719147423263,0.34385875,64459.0,64458.0,0.91583978]
[1719147425077,0.34385875,64459.0,64458.0,0.90583978]
[1719147425449,0.34385875,64459.0,64458.0,0.91583978]
[1719147426063,0.34474745,64459.0,64458.0,0.91583978]
[1719147426450,0.01136236,64459.0,64458.0,0.91583978]
[1719147427403,0.16649936,64459.0,64458.0,0.91583978]
[1719147429083,0.155137,64459.0,64458.0,0.91583978]
[1719147429318,0.16648824,64459.0,64458.0,0.91583978]
[1719147429677,0.16640827,64459.0,64458.0,0.91583978]
[1719147429888,0.16640827,64459.0,64458.0,0.91583979]
[1719147430273,0.16640827,64459.0,64458.0,0.90583979]
[1719147430853,0.155137,64459.0,64458.0,0.90583979]
[1719147431052,0.16641048,64459.0,64458.0,0.90583979]
[1719147431196,0.16641048,64459.0,64458.0,0.91583979]
[1719147431595,0.23634273,64459.0,64458.0,0.91583979]
[1719147432305,0.16641048,64459.0,64458.0,0.91583979]
[1719147432516,0.23643609,64459.0,64458.0,0.91583979]
[1719147435573,0.155137,64459.0,64458.0,0.91583979]
[1719147435800,0.23640749,64459.0,64458.0,0.91583979]
[1719147438726,0.16629156,64459.0,64458.0,0.91583979]
[1719147438939,0.23620783,64459.0,64458.0,0.90583979]
[1719147439413,0.22505328,64459.0,64458.0,0.90583979]
[1719147439626,0.23620784,64459.0,64458.0,0.90583979]
[1719147440595,0.23616873,64459.0,64458.0,0.90583979]
[1719147441951,0.23617456,64459.0,64458.0,0.90583979]
[1719147443316,0.23617456,64459.0,64458.0,0.91583979]
[1719147445107,0.23631667,64459.0,64458.0,0.91583979]
[1719147445520,0.23631667,64459.0,64458.0,0.90583979]
[1719147448252,0.155137,64459.0,64458.0,0.90583979]
[1719147448453,0.2363823,64459.0,64458.0,0.90583979]
[1719147449034,0.23638109,64459.0,64458.0,0.90583979]
[1719147449186,0.16646894,64459.0,64458.0,0.90583979]
[1719147449859,0.25968514,64459.0,64458.0,0.90583979]
[1719147450290,0.16646894,64459.0,64458.0,0.90583979]
[1719147451486,0.16651549,64459.0,64458.0,0.90583979]
[1719147453024,0.16663162,64459.0,64458.0,0.90583979]
[1719147454624,0.155137,64459.0,64458.0,0.90583979]
[1719147454859,0.16655469,64459.0,64458.0,0.90583979]
[1719147455476,0.16740469,64459.0,64458.0,0.90583979]
[1719147457875,0.155987,64459.0,64458.0,0.90583979]
[1719147458298,0.16744165,64459.0,64458.0,0.90583979]
[1719147459532,0.16743794,64459.0,64458.0,0.90583979]
[1719147460122,0.16744107,64459.0,64458.0,0.90583979]
[1719147461293,0.1674689,64459.0,64458.0,0.90583979]
[1719147463179,0.26068799,64459.0,64458.0,0.90583979]
[1719147463522,0.1674689,64459.0,64458.0,0.90583979]
[1719147464308,0.4777429,64459.0,64458.0,0.90583979]
[1719147464490,0.47779255,64459.0,64458.0,0.90583979]
[1719147464688,0.57101407,64459.0,64458.0,0.90583979]
[1719147465559,0.47779255,64459.0,64458.0,0.90583979]
[1719147466260,0.57099107,64459.0,64458.0,0.90583979]
[1719147466509,0.47776817,64459.0,64458.0,0.90583979]
[1719147467170,0.57099107,64459.0,64458.0,0.90583979]
[1719147467571,0.466261,64459.0,64458.0,0.80763979]
[1719147468151,0.57098358,64459.0,64458.0,0.80763979]
[1719147468357,0.47776096,64459.0,64458.0,0.80763979]
[1719147468485,0.57098358,64459.0,64458.0,0.80763979]
[1719147468728,0.47776096,64459.0,64458.0,0.80763979]
[1719147469293,0.57098482,64459.0,64458.0,0.80763979]
[1719147469988,0.47776096,64459.0,64458.0,0.80763979]
[1719147470817,0.466261,64459.0,64458.0,0.80763979]
[1719147471015,0.47770874,64459.0,64458.0,0.80763979]
[1719147472253,0.57093223,64459.0,64458.0,0.80763979]
[1719147472534,0.47770874,64459.0,64458.0,0.80763979]
[1719147473830,0.466261,64459.0,64458.0,0.80763979]
[1719147474015,0.47777097,64459.0,64458.0,0.80763979]
[1719147474380,0.57099685,64459.0,64458.0,0.80763979]
[1719147476948,0.47777097,64459.0,64458.0,0.80763979]
[1719147477146,0.57060972,64459.0,64458.0,0.80763979]
[1719147477564,0.57061096,64459.0,64458.0,0.80763979]
[1719147480219,0.47738086,64459.0,64458.0,0.80763979]
[1719147480422,0.57059926,64459.0,64458.0,0.80763979]
[1719147482752,0.57061913,64459.0,64458.0,0.80763979]
[1719147483701,0.2856361,64459.0,64458.0,0.80763979]
[1719147483876,0.5959101,64459.0,64458.0,0.80763979]
[1719147485922,0.5958314,64459.0,64458.0,0.80763979]
[1719147486309,0.59593288,64459.0,64458.0,0.80763979]
[1719147487243,0.59593288,64459.0,64458.0,0.8076398]
[1719147487919,0.59678288,64459.0,64458.0,0.8076398]
[1719147488927,0.58563837,64459.0,64458.0,0.8076398]
[1719147489128,0.59680927,64459.0,64458.0,0.8076398]
[1719147491041,0.79120927,64459.0,64458.0,0.8076398]
[1719147491914,0.59680927,64459.0,64458.0,0.8076398]
[1719147492042,0.49240197,64459.0,64458.0,0.8076398]
[1719147492264,0.59685997,64459.0,64458.0,0.8076398]
[1719147495266,0.50361902,64459.0,64458.0,0.8076398]
[1719147495603,0.59686413,64459.0,64458.0,0.8076398]
[1719147495727,0.5968644,64459.0,64458.0,0.8076398]
[1719147497089,0.59663954,64459.0,64458.0,0.8076398]
[1719147498451,0.49240197,64459.0,64458.0,0.8076398]
[1719147498660,0.5966902,64459.0,64458.0,0.8076398]
[1719147501155,0.58564898,64459.0,64458.0,0.8076398]
[1719147501349,0.59680369,64459.0,64458.0,0.8076398]
[1719147501599,0.49240197,64459.0,64458.0,0.8076398]
[1719147501812,0.59677662,64459.0,64458.0,0.8076398]
[1719147502345,0.59677666,64459.0,64458.0,0.8076398]
[1719147502973,0.50352902,64459.0,64458.0,0.8076398]
[1719147503170,0.59677666,64459.0,64458.0,0.8076398]
[1719147503516,0.59677668,64459.0,64458.0,0.8076398]
[1719147503805,0.50352902,64459.0,64458.0,0.8076398]
[1719147505754,0.59677657,64459.0,64458.0,0.8076398]
[1719147506486,0.59693822,64459.0,64458.0,0.9174398]
[1719147506694,0.28666422,64459.0,64458.0,0.9174398]
[1719147507217,0.28666422,64459.0,64458.0,0.9274398]
[1719147507422,0.28666422,64459.0,64458.0,0.9174398]
[1719147507874,0.19384471,64459.0,64458.0,0.9174398]
[1719147508209,0.28709306,64459.0,64458.0,0.9174398]
[1719147509078,0.10581509,64459.0,64458.0,0.8176398]
[1719147509283,0.10581509,64459.0,64458.0,1.0136398]
[1719147509845,0.10581509,64459.0,64458.0,1.0036398]
[1719147510951,0.00085,64459.0,64458.0,1.0036398]
[1719147511156,0.10628811,64459.0,64458.0,1.0036398]
[1719147511487,0.10628811,64459.0,64458.0,1.0136398]
[1719147512952,0.10628811,64459.0,64458.0,1.0136398]
[1719147513152,0.00085,64459.0,64458.0,1.0136398]
[1719147513315,0.1062974,64459.0,64458.0,1.0136398]
[1719147513510,0.1062974,64459.0,64458.0,1.0036398]
[1719147514314,0.10625895,64459.0,64458.0,1.0036398]
[1719147514677,0.10626651,64459.0,64458.0,1.0036398]
[1719147515755,0.10626578,64459.0,64458.0,1.0036398]
[1719147516616,0.10626578,64459.0,64458.0,1.0136398]
[1719147517010,0.10626578,64459.0,64458.0,1.0036398]
[1719147517336,0.10619351,64459.0,64458.0,1.0036398]
[1719147518118,0.08288087,64459.0,64458.0,1.0136398]
[1719147518492,0.08288087,64459.0,64458.0,1.0036398]
[1719147519089,0.07078117,64459.0,64458.0,1.0036398]
[1719147519308,0.08279928,64459.0,64458.0,1.0036398]
[1719147520535,0.08279032,64459.0,64458.0,1.0036398]
[1719147523719,0.07076795,64459.0,64458.0,1.0036398]
[1719147523914,0.08285973,64459.0,64458.0,1.0136398]
[1719147524161,0.07076795,64459.0,64458.0,1.0136398]
[1719147524330,0.07076795,64459.0,64458.0,1.0036398]
[1719147524595,0.08285973,64459.0,64458.0,1.0136398]
[1719147524773,0.08285973,64459.0,64458.0,1.0036398]
[1719147525338,0.08286572,64459.0,64458.0,1.0136398]
[1719147526821,0.07076535,64459.0,64458.0,1.0136398]
[1719147527022,0.08274158,64459.0,64458.0,1.0136398]
[1719147527593,0.08274158,64459.0,64458.0,1.0036398]
[1719147529232,0.05943529,64459.0,64458.0,1.0036398]
[1719147529927,0.05895748,64459.0,64458.0,1.0036398]
[1719147531295,0.05895748,64459.0,64458.0,0.82960711]
[1719147531498,0.05895748,64459.0,64458.0,1.0136398]
[1719147533123,0.05913753,64459.0,64458.0,1.0136398]
[1719147533527,0.05913663,64459.0,64458.0,1.0136398]
[1719147536114,0.00085,64459.0,64458.0,1.0136398]
[1719147536319,0.04745059,64459.0,64458.0,1.0136398]
[1719147536552,0.05916431,64459.0,64458.0,1.0136398]
[1719147537025,0.05916431,64459.0,64458.0,1.0036398]
[1719147537169,0.05916431,64459.0,64458.0,1.0136398]
[1719147539279,0.05916265,64459.0,64458.0,1.1136398]
[1719147541924,0.05922392,64459.0,64458.0,1.1136398]
[1719147542383,0.04744822,64459.0,64458.0,1.1136398]
[1719147542585,0.05922988,64459.0,64458.0,1.1136398]
[1719147543398,0.26197817,64465.0,64464.0,0.17403269]
[1719147543719,0.26197817,64465.0,64464.0,0.36589883]
[1719147543720,0.2454826,64465.0,64464.0,0.36589883]
[1719147544722,0.2454826,64465.0,64464.0,0.36705391]
[1719147544723,0.2474826,64465.0,64464.0,0.36705391]
[1719147544920,0.2474826,64465.0,64464.0,0.4265357]
[1719147545148,0.2474826,64465.0,64464.0,0.4275357]
[1719147546496,0.2474826,64465.0,64464.0,0.4265357]